[Event "*** MasterClass Titled Tuesday Blitz"]
[Site "Chess.com"]
[Date "2017.12.12"]
[Round "2"]
[White "visa"]
[Black "truki"]
[Result "0-1"]
[WhiteElo "2095"]
[BlackElo "2207"]
[TimeControl "180+2"]
[EndTime "13:20:26 PST"]
[Termination "truki won by resignation"]

1. e4 {[%clk 0:03:01.9]} 1... c6 {[%clk 0:03:00.2]} 2. Bc4 {[%clk 0:02:58.3]}
2... d5 {[%clk 0:03:01]} 3. Bb3 {[%clk 0:02:59.5]} 3... dxe4 {[%clk 0:02:58.2]}
4. Qh5 {[%clk 0:03:00.2]} 4... g6 {[%clk 0:02:56.3]} 5. Qh4 {[%clk 0:03:00.2]}
5... Nf6 {[%clk 0:02:57.2]} 6. Nc3 {[%clk 0:03:00.1]} 6... Bf5 {[%clk
0:02:54.2]} 7. f3 {[%clk 0:03:00.9]} 7... exf3 {[%clk 0:02:54.5]} 8. Nxf3 {[%clk
0:03:02.8]} 8... Bg7 {[%clk 0:02:51.6]} 9. d4 {[%clk 0:03:03.5]} 9... h6 {[%clk
0:02:50.4]} 10. Ne5 {[%clk 0:02:57.8]} 10... e6 {[%clk 0:02:50.8]} 11. g4 {[%clk
0:02:17]} 11... Qxd4 {[%clk 0:02:19.8]} 12. Qg3 {[%clk 0:02:05.1]} 12... Nxg4
{[%clk 0:02:18.5]} 13. Nf3 {[%clk 0:02:00.9]} 13... Qd8 {[%clk 0:02:04.2]} 14.
Bf4 {[%clk 0:01:55.5]} 14... Nf6 {[%clk 0:02:00.2]} 15. Rd1 {[%clk 0:01:54.8]}
15... Nbd7 {[%clk 0:01:55.9]} 16. Ne5 {[%clk 0:01:51.3]} 16... O-O {[%clk
0:01:53]} 17. Rd2 {[%clk 0:01:30.4]} 17... Nd5 {[%clk 0:01:41.3]} 18. Nf3 {[%clk
0:01:17.7]} 18... N7f6 {[%clk 0:01:39.3]} 19. Be5 {[%clk 0:01:10]} 19... Nh5
{[%clk 0:01:38.3]} 20. Qf2 {[%clk 0:00:59.8]} 20... Qb6 {[%clk 0:01:39.3]} 21.
Qe2 {[%clk 0:00:42.2]} 21... Nhf4 {[%clk 0:01:32.8]} 22. Qc4 {[%clk 0:00:39.9]}
22... Qe3+ {[%clk 0:01:28.2]} 23. Qe2 {[%clk 0:00:36.5]} 23... Nxe2 {[%clk
0:01:26.3]} 0-1

[Event "*** MasterClass Titled Tuesday Blitz"]
[Site "Chess.com"]
[Date "2017.12.12"]
[Round "2"]
[White "windking123"]
[Black "LuisFSiles"]
[Result "1-0"]
[WhiteElo "2367"]
[BlackElo "2229"]
[TimeControl "180+2"]
[EndTime "13:20:49 PST"]
[Termination "windking123 won by resignation"]

1. e4 {[%clk 0:03:01.9]} 1... e5 {[%clk 0:03:00]} 2. Nf3 {[%clk 0:03:00]} 2...
Nc6 {[%clk 0:03:00.1]} 3. Bb5 {[%clk 0:03:01]} 3... a6 {[%clk 0:03:00.2]} 4. Ba4
{[%clk 0:03:01.7]} 4... Nf6 {[%clk 0:03:00.9]} 5. O-O {[%clk 0:02:57.7]} 5...
Be7 {[%clk 0:03:01.1]} 6. c3 {[%clk 0:02:56.6]} 6... b5 {[%clk 0:02:54.3]} 7.
Bc2 {[%clk 0:02:57.1]} 7... d6 {[%clk 0:02:44]} 8. d4 {[%clk 0:02:54.1]} 8...
Bg4 {[%clk 0:02:42.5]} 9. dxe5 {[%clk 0:02:40.3]} 9... Nxe5 {[%clk 0:02:37]} 10.
Nbd2 {[%clk 0:02:40.7]} 10... O-O {[%clk 0:02:32.3]} 11. h3 {[%clk 0:02:36.2]}
11... Bh5 {[%clk 0:02:31.5]} 12. Qe2 {[%clk 0:02:22.5]} 12... Re8 {[%clk
0:02:20.9]} 13. Qe3 {[%clk 0:02:18.9]} 13... d5 {[%clk 0:02:06.7]} 14. Nxe5
{[%clk 0:02:18.7]} 14... Bd6 {[%clk 0:02:01]} 15. f4 {[%clk 0:01:55]} 15... c5
{[%clk 0:01:45.9]} 16. exd5 {[%clk 0:01:47.5]} 16... Nxd5 {[%clk 0:01:42.6]} 17.
Qd3 {[%clk 0:01:48.1]} 17... Nf6 {[%clk 0:01:42.5]} 18. Ne4 {[%clk 0:01:42.5]}
18... Bxe5 {[%clk 0:01:29.9]} 19. Nxf6+ {[%clk 0:01:22.7]} 19... Bxf6 {[%clk
0:01:28.2]} 20. Qxh7+ {[%clk 0:01:23.4]} 20... Kf8 {[%clk 0:01:29.5]} 21. Qh8+
{[%clk 0:01:23.6]} 21... Ke7 {[%clk 0:01:30.2]} 22. Qxh5 {[%clk 0:01:17.6]}
22... g6 {[%clk 0:01:27]} 23. Qf3 {[%clk 0:01:15.6]} 23... Kf8 {[%clk
0:01:26.5]} 24. Be3 {[%clk 0:01:15.4]} 24... Kg7 {[%clk 0:01:22]} 25. Rad1
{[%clk 0:01:11.8]} 25... Qc7 {[%clk 0:01:19]} 26. f5 {[%clk 0:01:09.1]} 26... b4
{[%clk 0:01:19.8]} 27. fxg6 {[%clk 0:01:06.5]} 27... Qe5 {[%clk 0:01:18.3]} 28.
Bf4 {[%clk 0:01:01.3]} 1-0

[Event "*** MasterClass Titled Tuesday Blitz"]
[Site "Chess.com"]
[Date "2017.12.12"]
[Round "2"]
[White "Vamostodorecto"]
[Black "Quiet_Desperation"]
[Result "0-1"]
[WhiteElo "2321"]
[BlackElo "2376"]
[TimeControl "180+2"]
[EndTime "13:20:53 PST"]
[Termination "Quiet_Desperation won by resignation"]

1. d4 {[%clk 0:03:01.9]} 1... Nf6 {[%clk 0:02:58.3]} 2. c4 {[%clk 0:03:01.9]}
2... e6 {[%clk 0:02:57.9]} 3. Nc3 {[%clk 0:03:02.2]} 3... Bb4 {[%clk 0:02:56.5]}
4. e3 {[%clk 0:03:02.8]} 4... b6 {[%clk 0:02:55.2]} 5. Bd3 {[%clk 0:03:02.1]}
5... Bb7 {[%clk 0:02:29.2]} 6. Nf3 {[%clk 0:03:02.2]} 6... O-O {[%clk 0:02:29]}
7. O-O {[%clk 0:03:02.2]} 7... c5 {[%clk 0:02:29.5]} 8. a3 {[%clk 0:02:54.4]}
8... cxd4 {[%clk 0:02:03.5]} 9. exd4 {[%clk 0:02:34.9]} 9... Be7 {[%clk
0:01:55.6]} 10. b4 {[%clk 0:02:30]} 10... d6 {[%clk 0:01:54.4]} 11. d5 {[%clk
0:02:18.5]} 11... exd5 {[%clk 0:01:48.3]} 12. Nxd5 {[%clk 0:02:18.3]} 12... Nxd5
{[%clk 0:01:48]} 13. cxd5 {[%clk 0:02:20.2]} 13... Nd7 {[%clk 0:01:49.3]} 14.
Bb2 {[%clk 0:02:11.6]} 14... Bf6 {[%clk 0:01:47.2]} 15. Ra2 {[%clk 0:01:40.6]}
15... g6 {[%clk 0:01:39.8]} 16. Bxf6 {[%clk 0:01:35.7]} 16... Qxf6 {[%clk
0:01:40.1]} 17. Bb5 {[%clk 0:01:33]} 17... Ne5 {[%clk 0:01:20]} 18. Nxe5 {[%clk
0:01:33.1]} 18... dxe5 {[%clk 0:01:14.7]} 19. Rd2 {[%clk 0:01:26.9]} 19... Rad8
{[%clk 0:01:12.8]} 20. d6 {[%clk 0:01:19.7]} 20... Qg5 {[%clk 0:01:07.6]} 21. f3
{[%clk 0:01:16.5]} 21... e4 {[%clk 0:01:05.2]} 22. f4 {[%clk 0:01:12.4]} 22...
Qxb5 {[%clk 0:01:05.5]} 23. f5 {[%clk 0:01:08]} 23... e3 {[%clk 0:00:58.9]} 24.
Re2 {[%clk 0:01:05.6]} 24... Rfe8 {[%clk 0:00:55.8]} 25. Qd4 {[%clk 0:00:57]}
25... Qxe2 {[%clk 0:00:50.5]} 0-1

[Event "*** MasterClass Titled Tuesday Blitz"]
[Site "Chess.com"]
[Date "2017.12.12"]
[Round "2"]
[White "Vahe_Dan"]
[Black "Konavets"]
[Result "1-0"]
[WhiteElo "2547"]
[BlackElo "2767"]
[TimeControl "180+2"]
[EndTime "13:21:22 PST"]
[Termination "Vahe_Dan won by checkmate"]

1. e4 {[%clk 0:03:01.9]} 1... c5 {[%clk 0:03:00.4]} 2. Nc3 {[%clk 0:03:01.6]}
2... e6 {[%clk 0:03:01.8]} 3. Nf3 {[%clk 0:03:02.4]} 3... a6 {[%clk 0:03:03.1]}
4. d4 {[%clk 0:03:02.5]} 4... cxd4 {[%clk 0:03:05]} 5. Nxd4 {[%clk 0:03:04.3]}
5... b5 {[%clk 0:03:06.9]} 6. g3 {[%clk 0:03:04.5]} 6... Bb7 {[%clk 0:03:08.2]}
7. Bg2 {[%clk 0:03:04.9]} 7... Qb6 {[%clk 0:03:09.2]} 8. O-O {[%clk 0:03:03.7]}
8... Nc6 {[%clk 0:03:09.5]} 9. Nb3 {[%clk 0:03:02.6]} 9... Nf6 {[%clk 0:03:09]}
10. Re1 {[%clk 0:02:58.7]} 10... d6 {[%clk 0:03:07.5]} 11. a4 {[%clk 0:02:57]}
11... b4 {[%clk 0:03:07.2]} 12. a5 {[%clk 0:02:57.8]} 12... Qc7 {[%clk
0:03:07.3]} 13. Na2 {[%clk 0:02:58.2]} 13... Nxa5 {[%clk 0:03:04.2]} 14. Nxa5
{[%clk 0:02:56.8]} 14... Qxa5 {[%clk 0:03:04.7]} 15. Bd2 {[%clk 0:02:58.7]}
15... Qc7 {[%clk 0:03:00.9]} 16. Nxb4 {[%clk 0:02:59.6]} 16... Be7 {[%clk
0:03:02.3]} 17. Nd3 {[%clk 0:02:59.1]} 17... O-O {[%clk 0:03:02.9]} 18. Ba5
{[%clk 0:02:53.9]} 18... Qc8 {[%clk 0:03:02.4]} 19. b3 {[%clk 0:02:54.3]} 19...
d5 {[%clk 0:02:55.7]} 20. exd5 {[%clk 0:02:51.7]} 20... Bxd5 {[%clk 0:02:56.1]}
21. Bxd5 {[%clk 0:02:48.5]} 21... Nxd5 {[%clk 0:02:58]} 22. c4 {[%clk
0:02:48.8]} 22... Nf6 {[%clk 0:02:52.4]} 23. c5 {[%clk 0:02:50]} 23... Rb8
{[%clk 0:02:51.8]} 24. b4 {[%clk 0:02:51]} 24... Nd5 {[%clk 0:02:51.7]} 25. Rc1
{[%clk 0:02:51.2]} 25... Bf6 {[%clk 0:02:50.5]} 26. c6 {[%clk 0:02:49.8]} 26...
Bc3 {[%clk 0:02:46.8]} 27. c7 {[%clk 0:02:46.2]} 27... Rb5 {[%clk 0:02:47.4]}
28. Re4 {[%clk 0:02:43.2]} 28... Rxa5 {[%clk 0:01:33.4]} 29. bxa5 {[%clk
0:02:36.9]} 29... Qxc7 {[%clk 0:01:30.1]} 30. Qe2 {[%clk 0:02:32.5]} 30... Qxa5
{[%clk 0:01:28.1]} 31. Rc4 {[%clk 0:02:27.7]} 31... g6 {[%clk 0:01:25.8]} 32.
R1xc3 {[%clk 0:02:03.1]} 32... Nxc3 {[%clk 0:01:26.3]} 33. Qe1 {[%clk
0:02:03.7]} 33... Rb8 {[%clk 0:01:18.9]} 34. Rxc3 {[%clk 0:01:59.2]} 34... Qa2
{[%clk 0:01:19.7]} 35. Qe5 {[%clk 0:01:57.5]} 35... Qb1+ {[%clk 0:01:19.5]} 36.
Kg2 {[%clk 0:01:56.6]} 36... Rd8 {[%clk 0:01:19.3]} 37. Nc5 {[%clk 0:01:55.3]}
37... Qb5 {[%clk 0:01:09.2]} 38. Qc7 {[%clk 0:01:49.4]} 38... Rd5 {[%clk
0:00:59.5]} 39. Qc8+ {[%clk 0:01:46.2]} 39... Kg7 {[%clk 0:00:57.9]} 40. Nxe6+
{[%clk 0:01:42.1]} 40... fxe6 {[%clk 0:00:51.6]} 41. Rc7+ {[%clk 0:01:41.9]}
41... Kf6 {[%clk 0:00:52.4]} 42. Qf8+ {[%clk 0:01:41]} 42... Ke5 {[%clk
0:00:54.1]} 43. Qf4# {[%clk 0:01:40.1]} 1-0

[Event "*** MasterClass Titled Tuesday Blitz"]
[Site "Chess.com"]
[Date "2017.12.12"]
[Round "2"]
[White "xamax2000"]
[Black "AndrewDGreen"]
[Result "1-0"]
[WhiteElo "2234"]
[BlackElo "2089"]
[TimeControl "180+2"]
[EndTime "13:21:30 PST"]
[Termination "xamax2000 won by checkmate"]

1. e4 {[%clk 0:03:01.9]} 1... Nf6 {[%clk 0:02:59.8]} 2. e5 {[%clk 0:03:02.8]}
2... Nd5 {[%clk 0:03:00.9]} 3. d4 {[%clk 0:03:04.7]} 3... d6 {[%clk 0:03:02.3]}
4. Nf3 {[%clk 0:03:04.7]} 4... dxe5 {[%clk 0:03:03.6]} 5. Nxe5 {[%clk
0:03:06.5]} 5... c6 {[%clk 0:03:04.9]} 6. Be2 {[%clk 0:03:05.9]} 6... Bf5 {[%clk
0:03:05.3]} 7. O-O {[%clk 0:03:05.7]} 7... Nd7 {[%clk 0:03:06.3]} 8. Nf3 {[%clk
0:03:06.6]} 8... e6 {[%clk 0:03:05.2]} 9. c4 {[%clk 0:03:05.1]} 9... N5f6 {[%clk
0:03:06.3]} 10. Nc3 {[%clk 0:03:05.7]} 10... Ne4 {[%clk 0:03:06]} 11. Bf4 {[%clk
0:03:01.6]} 11... Nxc3 {[%clk 0:03:01.3]} 12. bxc3 {[%clk 0:03:03.5]} 12... Be7
{[%clk 0:03:01.1]} 13. Qb3 {[%clk 0:03:04.1]} 13... b6 {[%clk 0:03:01.4]} 14.
Rad1 {[%clk 0:03:01.6]} 14... O-O {[%clk 0:02:58.6]} 15. Ne5 {[%clk 0:03:02.6]}
15... Nxe5 {[%clk 0:02:59]} 16. Bxe5 {[%clk 0:03:04.5]} 16... Qd7 {[%clk
0:02:48.3]} 17. Bf3 {[%clk 0:03:05.3]} 17... Rac8 {[%clk 0:02:46.5]} 18. Rfe1
{[%clk 0:03:04.2]} 18... Bd6 {[%clk 0:02:08.1]} 19. h4 {[%clk 0:02:59.7]} 19...
Qe7 {[%clk 0:01:56.9]} 20. g4 {[%clk 0:02:54.3]} 20... Bxe5 {[%clk 0:01:48.6]}
21. dxe5 {[%clk 0:02:54.2]} 21... Bxg4 {[%clk 0:01:40.7]} 22. Bxg4 {[%clk
0:02:53.6]} 22... Qxh4 {[%clk 0:01:42.6]} 23. Bf3 {[%clk 0:02:54.4]} 23... f6
{[%clk 0:01:36.3]} 24. Re4 {[%clk 0:02:51.7]} 24... Qg5+ {[%clk 0:01:33.9]} 25.
Bg2 {[%clk 0:02:52.9]} 25... f5 {[%clk 0:01:32.9]} 26. Red4 {[%clk 0:02:42.9]}
26... f4 {[%clk 0:01:26.9]} 27. c5 {[%clk 0:02:43.8]} 27... Rce8 {[%clk
0:01:19.8]} 28. f3 {[%clk 0:02:38.6]} 28... Qxe5 {[%clk 0:01:12.8]} 29. cxb6
{[%clk 0:02:38.3]} 29... Rf6 {[%clk 0:00:39.8]} 30. b7 {[%clk 0:02:35]} 30...
Rg6 {[%clk 0:00:35.4]} 31. Re4 {[%clk 0:01:49.3]} 31... Qg5 {[%clk 0:00:30.9]}
32. Rd2 {[%clk 0:01:45.8]} 32... Qc5+ {[%clk 0:00:28.8]} 33. Kf1 {[%clk
0:01:45.2]} 33... Rb8 {[%clk 0:00:25.6]} 34. Rxe6 {[%clk 0:01:39.5]} 34... Rxb7
{[%clk 0:00:16.8]} 35. Re8# {[%clk 0:01:39.6]} 1-0

[Event "*** MasterClass Titled Tuesday Blitz"]
[Site "Chess.com"]
[Date "2017.12.12"]
[Round "2"]
[White "TijanaBlagojevic"]
[Black "Jbd735"]
[Result "1/2-1/2"]
[WhiteElo "2381"]
[BlackElo "2253"]
[TimeControl "180+2"]
[EndTime "13:21:36 PST"]
[Termination "Game drawn by agreement"]

1. e4 {[%clk 0:03:01.9]} 1... e5 {[%clk 0:03:00.7]} 2. Nf3 {[%clk 0:03:02.8]}
2... Nc6 {[%clk 0:03:01.8]} 3. Nc3 {[%clk 0:03:03.9]} 3... Nf6 {[%clk
0:03:01.5]} 4. d4 {[%clk 0:03:05.1]} 4... exd4 {[%clk 0:03:02]} 5. Nxd4 {[%clk
0:03:07]} 5... Bb4 {[%clk 0:02:59.3]} 6. Nxc6 {[%clk 0:03:07.5]} 6... bxc6
{[%clk 0:03:01.2]} 7. Bd3 {[%clk 0:03:08.7]} 7... d5 {[%clk 0:03:01.9]} 8. exd5
{[%clk 0:03:09.5]} 8... cxd5 {[%clk 0:03:03.4]} 9. O-O {[%clk 0:03:09.9]} 9...
O-O {[%clk 0:03:04.2]} 10. h3 {[%clk 0:03:11.3]} 10... c6 {[%clk 0:03:04.2]} 11.
Qf3 {[%clk 0:03:12]} 11... Be6 {[%clk 0:03:00.8]} 12. Bf4 {[%clk 0:03:12.1]}
12... Bd6 {[%clk 0:02:52.2]} 13. Ne2 {[%clk 0:03:12.1]} 13... Bxf4 {[%clk
0:02:51]} 14. Nxf4 {[%clk 0:03:12.8]} 14... Rb8 {[%clk 0:02:49.1]} 15. b3 {[%clk
0:03:13.1]} 15... Qd6 {[%clk 0:02:45.8]} 16. Rfe1 {[%clk 0:03:13.8]} 16... Rfe8
{[%clk 0:02:44.2]} 17. Re3 {[%clk 0:02:55.8]} 17... Bd7 {[%clk 0:02:33.6]} 18.
Rae1 {[%clk 0:02:52.2]} 18... Rxe3 {[%clk 0:02:33.9]} 19. Rxe3 {[%clk
0:02:53.1]} 19... Re8 {[%clk 0:02:19.7]} 20. Nh5 {[%clk 0:02:49.5]} 20... Nxh5
{[%clk 0:02:05.1]} 21. Qxh5 {[%clk 0:02:48.6]} 21... g6 {[%clk 0:01:53.5]} 22.
Qe2 {[%clk 0:02:45.4]} 22... Rxe3 {[%clk 0:01:50.1]} 23. Qxe3 {[%clk 0:02:47.3]}
23... Qa3 {[%clk 0:01:46.2]} 24. Qe5 {[%clk 0:02:26.1]} 24... Qxa2 {[%clk
0:01:27.4]} 25. Qb8+ {[%clk 0:02:26.5]} 25... Kg7 {[%clk 0:01:27.4]} 26. Qe5+
{[%clk 0:02:27.6]} 26... Kg8 {[%clk 0:01:27.7]} 27. Qd6 {[%clk 0:02:19]} 27...
Qa1+ {[%clk 0:01:24.2]} 28. Kh2 {[%clk 0:02:18.8]} 28... Be6 {[%clk 0:01:21.2]}
29. Qxc6 {[%clk 0:02:15]} 29... Qe5+ {[%clk 0:01:20.3]} 30. Kg1 {[%clk
0:02:14.7]} 30... Qe1+ {[%clk 0:01:19.7]} 31. Bf1 {[%clk 0:02:13.5]} 31... d4
{[%clk 0:01:09.3]} 32. Qa8+ {[%clk 0:02:11.7]} 32... Kg7 {[%clk 0:01:09.8]} 33.
Qxa7 {[%clk 0:02:11.5]} 33... Qc3 {[%clk 0:00:58]} 34. Qb8 {[%clk 0:01:52.3]}
34... Qxc2 {[%clk 0:00:49.8]} 35. Qe5+ {[%clk 0:01:53]} 35... Kg8 {[%clk
0:00:50.1]} 36. Qxd4 {[%clk 0:01:48.3]} 36... Qxb3 {[%clk 0:00:50.8]} 37. h4
{[%clk 0:01:46.9]} 37... Qd5 {[%clk 0:00:51.1]} 38. Qf4 {[%clk 0:01:44.4]} 38...
Kg7 {[%clk 0:00:48.4]} 39. Be2 {[%clk 0:01:41.3]} 39... h6 {[%clk 0:00:48.4]}
40. Bf3 {[%clk 0:01:41.9]} 40... Qf5 {[%clk 0:00:46.8]} 41. Qd4+ {[%clk
0:01:41.2]} 41... Qf6 {[%clk 0:00:47.5]} 42. Qxf6+ {[%clk 0:01:35.5]} 42... Kxf6
{[%clk 0:00:48.2]} 43. g3 {[%clk 0:01:37.4]} 43... g5 {[%clk 0:00:48.2]} 44.
hxg5+ {[%clk 0:01:37.9]} 44... hxg5 {[%clk 0:00:47.8]} 1/2-1/2

[Event "*** MasterClass Titled Tuesday Blitz"]
[Site "Chess.com"]
[Date "2017.12.12"]
[Round "2"]
[White "walkingcreep"]
[Black "jposthuma"]
[Result "1-0"]
[WhiteElo "2403"]
[BlackElo "2319"]
[TimeControl "180+2"]
[EndTime "13:21:48 PST"]
[Termination "walkingcreep won on time"]

1. d4 {[%clk 0:03:01.9]} 1... Nf6 {[%clk 0:03:00.3]} 2. c4 {[%clk 0:03:02.5]}
2... c5 {[%clk 0:03:01]} 3. d5 {[%clk 0:03:03.2]} 3... b5 {[%clk 0:03:01.8]} 4.
Nf3 {[%clk 0:03:01.6]} 4... Bb7 {[%clk 0:02:59]} 5. Qc2 {[%clk 0:02:59.4]} 5...
bxc4 {[%clk 0:02:53.3]} 6. e4 {[%clk 0:02:59.4]} 6... e6 {[%clk 0:02:54.2]} 7.
Bxc4 {[%clk 0:02:57.9]} 7... exd5 {[%clk 0:02:53.2]} 8. exd5 {[%clk 0:02:59.8]}
8... Bxd5 {[%clk 0:02:03.6]} 9. Bxd5 {[%clk 0:02:49.4]} 9... Nxd5 {[%clk
0:02:05.5]} 10. O-O {[%clk 0:02:50.4]} 10... Be7 {[%clk 0:02:03.2]} 11. Re1
{[%clk 0:02:48.2]} 11... Nb4 {[%clk 0:01:05.6]} 12. Qxc5 {[%clk 0:02:34.4]}
12... Nd3 {[%clk 0:01:05.7]} 13. Qd5 {[%clk 0:02:22.5]} 13... Nxe1 {[%clk
0:01:06]} 14. Qxa8 {[%clk 0:02:23.5]} 14... Nc2 {[%clk 0:01:03.6]} 15. Qe4
{[%clk 0:02:14.8]} 15... Nxa1 {[%clk 0:01:03.3]} 16. Nc3 {[%clk 0:02:15.6]}
16... O-O {[%clk 0:01:00.1]} 17. Qb1 {[%clk 0:02:16.7]} 17... d5 {[%clk
0:00:55]} 18. Qxa1 {[%clk 0:02:11.6]} 18... d4 {[%clk 0:00:55.2]} 19. Ne4 {[%clk
0:02:12.6]} 19... Qd5 {[%clk 0:00:53.3]} 20. Qb1 {[%clk 0:02:13.6]} 20... h6
{[%clk 0:00:43.5]} 21. Bd2 {[%clk 0:02:09.5]} 21... Nc6 {[%clk 0:00:42.8]} 22.
a3 {[%clk 0:02:09.3]} 22... Ne5 {[%clk 0:00:36.2]} 23. Nxe5 {[%clk 0:02:07.5]}
23... Qxe5 {[%clk 0:00:38.1]} 24. Qd3 {[%clk 0:02:08.2]} 24... Re8 {[%clk
0:00:33]} 25. f3 {[%clk 0:02:04.3]} 25... f5 {[%clk 0:00:29.9]} 26. Ng3 {[%clk
0:02:03.4]} 26... g6 {[%clk 0:00:18.7]} 27. Ne2 {[%clk 0:01:57.8]} 27... Bf6
{[%clk 0:00:17.7]} 28. Nf4 {[%clk 0:01:55.8]} 28... Kh7 {[%clk 0:00:16.7]} 29.
Qc4 {[%clk 0:01:53.3]} 29... Re7 {[%clk 0:00:16.2]} 30. Nd5 {[%clk 0:01:53.2]}
30... Rd7 {[%clk 0:00:15.5]} 31. Nf4 {[%clk 0:01:53]} 31... Rc7 {[%clk
0:00:15.5]} 32. Qd3 {[%clk 0:01:49.6]} 32... Bg5 {[%clk 0:00:15.5]} 33. g3
{[%clk 0:01:50.8]} 33... Bxf4 {[%clk 0:00:15.8]} 34. Bxf4 {[%clk 0:01:49]} 34...
Qd5 {[%clk 0:00:15.5]} 35. Bxc7 {[%clk 0:01:49.4]} 35... h5 {[%clk 0:00:13.7]}
36. Bf4 {[%clk 0:01:48.9]} 36... Qc5 {[%clk 0:00:12]} 37. Bg5 {[%clk 0:01:46.7]}
37... Qd6 {[%clk 0:00:09.7]} 38. Be3 {[%clk 0:01:43.4]} 1-0

[Event "*** MasterClass Titled Tuesday Blitz"]
[Site "Chess.com"]
[Date "2017.12.12"]
[Round "2"]
[White "sandager"]
[Black "BillCoe"]
[Result "1-0"]
[WhiteElo "1981"]
[BlackElo "1899"]
[TimeControl "180+2"]
[EndTime "13:21:54 PST"]
[Termination "sandager won by resignation"]

1. e4 {[%clk 0:03:00.6]} 1... c5 {[%clk 0:03:00.9]} 2. Nf3 {[%clk 0:03:01.4]}
2... e6 {[%clk 0:03:01.8]} 3. d4 {[%clk 0:03:02.3]} 3... cxd4 {[%clk 0:03:03.7]}
4. Nxd4 {[%clk 0:03:03.4]} 4... a6 {[%clk 0:03:05.3]} 5. Nc3 {[%clk 0:03:04.3]}
5... Qc7 {[%clk 0:03:06.3]} 6. Bd3 {[%clk 0:03:04.8]} 6... Nf6 {[%clk
0:03:06.8]} 7. O-O {[%clk 0:03:05.4]} 7... Be7 {[%clk 0:03:07.6]} 8. Be3 {[%clk
0:03:03.9]} 8... d6 {[%clk 0:03:08.9]} 9. f4 {[%clk 0:03:04.1]} 9... Nbd7 {[%clk
0:03:10.1]} 10. Qe1 {[%clk 0:03:04.5]} 10... b5 {[%clk 0:03:08.2]} 11. a3 {[%clk
0:03:03.8]} 11... Bb7 {[%clk 0:03:08.1]} 12. Kh1 {[%clk 0:03:05.3]} 12... Nc5
{[%clk 0:03:06.3]} 13. Bg1 {[%clk 0:03:06.2]} 13... Nxd3 {[%clk 0:03:05.2]} 14.
cxd3 {[%clk 0:03:06.2]} 14... d5 {[%clk 0:02:55.9]} 15. Rc1 {[%clk 0:03:06.1]}
15... Qd7 {[%clk 0:02:52.1]} 16. e5 {[%clk 0:02:55.1]} 16... Ng4 {[%clk
0:02:32.9]} 17. Qg3 {[%clk 0:02:46.4]} 17... h5 {[%clk 0:02:04.2]} 18. h3 {[%clk
0:02:41.8]} 18... g6 {[%clk 0:01:31.4]} 19. hxg4 {[%clk 0:02:20.9]} 19... hxg4+
{[%clk 0:01:33.3]} 20. Bh2 {[%clk 0:02:21.2]} 20... Bh4 {[%clk 0:01:11.1]} 21.
Qxg4 {[%clk 0:02:21.6]} 21... Ke7 {[%clk 0:01:12.4]} 22. Kg1 {[%clk 0:02:19.3]}
22... Rag8 {[%clk 0:01:03.7]} 23. g3 {[%clk 0:02:19.6]} 23... f5 {[%clk
0:01:04.6]} 24. Qe2 {[%clk 0:02:12.4]} 24... g5 {[%clk 0:00:59.3]} 25. gxh4
{[%clk 0:02:10.9]} 25... Rxh4 {[%clk 0:00:57.7]} 26. Kh1 {[%clk 0:01:53.6]}
26... Rgh8 {[%clk 0:00:42.9]} 27. Nf3 {[%clk 0:01:53.4]} 27... d4 {[%clk
0:00:35.2]} 28. Ne4 {[%clk 0:01:21.8]} 28... fxe4 {[%clk 0:00:29.2]} 29. dxe4
{[%clk 0:01:21.6]} 29... Rxf4 {[%clk 0:00:27.4]} 30. Nxg5 {[%clk 0:01:18.4]}
30... Rxf1+ {[%clk 0:00:03.7]} 31. Rxf1 {[%clk 0:01:18.7]} 31... Kd8 {[%clk
0:00:04.7]} 32. Nf7+ {[%clk 0:01:16.4]} 1-0

[Event "*** MasterClass Titled Tuesday Blitz"]
[Site "Chess.com"]
[Date "2017.12.12"]
[Round "2"]
[White "marreta84"]
[Black "cheese111"]
[Result "0-1"]
[WhiteElo "2316"]
[BlackElo "2410"]
[TimeControl "180+2"]
[EndTime "13:22:06 PST"]
[Termination "cheese111 won by resignation"]

1. d4 {[%clk 0:03:01.9]} 1... d5 {[%clk 0:03:00.3]} 2. Nf3 {[%clk 0:03:02.5]}
2... Nf6 {[%clk 0:03:00.6]} 3. g3 {[%clk 0:03:02.6]} 3... e6 {[%clk 0:03:01.1]}
4. Bg2 {[%clk 0:03:04]} 4... b5 {[%clk 0:03:01.9]} 5. O-O {[%clk 0:03:05.2]}
5... Bb7 {[%clk 0:03:02.7]} 6. b3 {[%clk 0:03:05.5]} 6... Nbd7 {[%clk
0:02:59.6]} 7. Nbd2 {[%clk 0:03:06.8]} 7... c5 {[%clk 0:02:59.6]} 8. Bb2 {[%clk
0:03:06]} 8... Bd6 {[%clk 0:02:55.5]} 9. c4 {[%clk 0:03:04.9]} 9... bxc4 {[%clk
0:02:55.4]} 10. bxc4 {[%clk 0:03:05.5]} 10... O-O {[%clk 0:02:56.4]} 11. cxd5
{[%clk 0:03:00.3]} 11... Bxd5 {[%clk 0:02:56.1]} 12. Re1 {[%clk 0:02:49]} 12...
Rb8 {[%clk 0:02:56.1]} 13. Qc2 {[%clk 0:02:41.4]} 13... Qb6 {[%clk 0:02:54]} 14.
Ba3 {[%clk 0:02:24.6]} 14... cxd4 {[%clk 0:02:53.8]} 15. Rab1 {[%clk 0:02:02.6]}
15... Qa6 {[%clk 0:02:50.5]} 16. Bxd6 {[%clk 0:01:58.8]} 16... Qxd6 {[%clk
0:02:52.4]} 17. Qa4 {[%clk 0:01:49.6]} 17... e5 {[%clk 0:02:40.9]} 18. Rec1
{[%clk 0:01:44.2]} 18... Rxb1 {[%clk 0:02:38.1]} 19. Rxb1 {[%clk 0:01:44.1]}
19... Rb8 {[%clk 0:02:32.9]} 20. Rc1 {[%clk 0:01:32.3]} 20... h6 {[%clk
0:02:16.2]} 21. h3 {[%clk 0:01:32.5]} 21... Rb2 {[%clk 0:02:10.5]} 22. Rc2
{[%clk 0:01:23.5]} 22... Rxc2 {[%clk 0:02:10.1]} 23. Qxc2 {[%clk 0:01:25.3]}
23... Qc5 {[%clk 0:01:15.6]} 24. Qb2 {[%clk 0:01:22.3]} 24... Qc3 {[%clk
0:01:09.1]} 25. Qb1 {[%clk 0:01:17.7]} 25... e4 {[%clk 0:01:07.2]} 26. Nxd4
{[%clk 0:00:47.8]} 26... Qxd4 {[%clk 0:01:05.8]} 27. Nb3 {[%clk 0:00:40.3]}
27... Qb4 {[%clk 0:01:02.6]} 28. Qc2 {[%clk 0:00:37.6]} 28... a5 {[%clk
0:01:02.8]} 29. e3 {[%clk 0:00:32]} 29... a4 {[%clk 0:01:03.4]} 30. Nd4 {[%clk
0:00:32.4]} 30... a3 {[%clk 0:01:04.5]} 31. Qc8+ {[%clk 0:00:32.5]} 31... Kh7
{[%clk 0:01:04.8]} 32. Nf5 {[%clk 0:00:17.6]} 32... Bxa2 {[%clk 0:01:02.4]} 33.
g4 {[%clk 0:00:14.6]} 33... Be6 {[%clk 0:01:01.3]} 34. Nd4 {[%clk 0:00:14.5]}
34... a2 {[%clk 0:01:00.5]} 0-1